bitfinex-derivatives/quotes_BTCF0:USTF0_20250503
["timestamp","ask_amount","ask_price","bid_price","bid_amount"]
[1746288195438,0.5682256,96396.0,96395.0,0.15103739]
[1746288196043,0.6862256,96396.0,96395.0,0.15103739]
[1746288197049,0.6862256,96396.0,96395.0,0.15203739]
[1746288197250,0.6862256,96396.0,96395.0,0.35946509]
[1746288197652,0.6862256,96396.0,96395.0,0.36046509]
[1746288200858,0.6862256,96396.0,96395.0,0.15303739]
[1746288206157,0.6862256,96396.0,96395.0,0.15203739]
[1746288207260,0.6862256,96396.0,96395.0,0.15103739]
[1746288208562,0.6862256,96396.0,96395.0,0.35846509]
[1746288210256,0.7175256,96396.0,96395.0,0.35846509]
[1746288210956,0.7489256,96396.0,96395.0,0.35846509]
[1746288213769,0.7175256,96396.0,96395.0,0.35846509]
[1746288216174,0.7195256,96396.0,96395.0,0.35846509]
[1746288216571,0.7215256,96396.0,96395.0,0.35946509]
[1746288217273,0.7225256,96396.0,96395.0,0.35946509]
[1746288218676,0.7235256,96396.0,96395.0,0.35946509]
[1746288219672,0.7235256,96396.0,96395.0,0.15203739]
[1746288220172,0.7175256,96396.0,96395.0,0.15103739]
[1746288220379,0.7235256,96396.0,96395.0,0.15203739]
[1746288220680,0.7235256,96396.0,96395.0,0.35946509]
[1746288221667,0.7235256,96396.0,96395.0,0.20946509]
[1746288226885,0.7235256,96396.0,96395.0,0.23946509]
[1746288228381,0.7562256,96396.0,96395.0,0.23946509]
[1746288232986,0.7552256,96396.0,96395.0,0.23946509]
[1746288234591,0.7532256,96396.0,96395.0,0.23946509]
[1746288238591,0.83243878,96396.0,96395.0,0.23946509]
[1746288241585,0.83243878,96396.0,96395.0,0.03203739]
[1746288241989,0.83243878,96396.0,96395.0,0.23946509]
[1746288243796,0.71443878,96396.0,96395.0,0.23946509]
[1746288243987,0.71443878,96396.0,96395.0,0.03203739]
[1746288246401,0.6352256,96396.0,96395.0,0.03203739]
[1746288248500,0.6352256,96396.0,96395.0,0.00203739]
[1746288249193,0.6352256,96396.0,96395.0,0.01203739]
[1746288251999,0.6652256,96396.0,96395.0,0.00203739]
[1746288256792,0.207432,96393.0,96392.0,0.00155614]
[1746288256995,0.217432,96393.0,96392.0,0.00155614]
[1746288257807,0.313532,96393.0,96392.0,0.00155614]
[1746288258001,0.314532,96393.0,96392.0,0.00155614]
[1746288258202,0.316532,96393.0,96392.0,0.00255614]
[1746288259206,0.434532,96393.0,96392.0,0.00255614]
[1746288259405,0.2074406,96389.0,96388.0,0.0079318]
[1746288259601,0.2074535,96383.0,96382.0,0.032]
[1746288259806,0.5682535,96383.0,96382.0,0.124]
[1746288261095,0.5692535,96383.0,96382.0,0.125]
[1746288262409,0.5702535,96383.0,96382.0,0.125]
[1746288262812,0.5712535,96383.0,96382.0,0.125]
[1746288263110,0.5712535,96383.0,96382.0,0.13278693]
[1746288263309,0.5692535,96383.0,96382.0,0.13178693]
[1746288263509,0.5722535,96383.0,96382.0,0.13278693]
[1746288272715,0.5722535,96383.0,96382.0,0.06878693]
[1746288273713,0.5722535,96383.0,96382.0,0.10138693]
[1746288278119,0.5722535,96383.0,96382.0,0.13438693]
[1746288278427,0.5732535,96383.0,96382.0,0.13438693]
[1746288280327,0.5702535,96383.0,96382.0,0.13338693]
[1746288280634,0.5722535,96383.0,96382.0,0.13338693]
[1746288289835,0.6344535,96383.0,96382.0,0.10038693]
[1746288290340,0.6344535,96383.0,96382.0,0.06778693]
[1746288293139,0.2736535,96383.0,96382.0,0.06778693]
[1746288293339,0.6344535,96383.0,96382.0,0.06778693]
[1746288300341,0.2074665,96377.0,96376.0,0.13006049]
[1746288300527,0.2074665,96377.0,96376.0,0.38006049]
[1746288301035,0.2715665,96377.0,96376.0,0.38006049]
[1746288301436,0.2715665,96377.0,96376.0,0.28624098]
[1746288301737,0.2715665,96377.0,96365.0,0.00103772]
[1746288301738,0.2074901,96366.0,96365.0,0.00103772]
[1746288301939,0.5682901,96366.0,96365.0,0.19861194]
[1746288302242,0.5682901,96366.0,96365.0,0.16103772]
[1746288303035,0.6318901,96366.0,96365.0,0.16103772]
[1746288303436,0.6318901,96366.0,96365.0,0.19745967]
[1746288303636,0.6318901,96366.0,96365.0,0.19945967]
[1746288303835,0.6318901,96366.0,96365.0,0.23165967]
[1746288304038,0.6318901,96366.0,96365.0,0.23265967]
[1746288304543,0.6328901,96366.0,96365.0,0.23265967]
[1746288306146,0.6328901,96366.0,96365.0,0.20045967]
[1746288313851,0.6328901,96366.0,96365.0,0.04045967]
[1746288316263,0.2074966,96363.0,96362.0,0.0303]
[1746288316459,0.2074966,96363.0,96362.0,0.0403]
[1746288317045,0.2720966,96363.0,96362.0,0.0403]
[1746288317251,0.2720966,96363.0,96362.0,0.09428019]
[1746288317455,0.2720966,96363.0,96362.0,0.0433]
[1746288317952,0.2730966,96363.0,96362.0,0.0453]
[1746288318351,0.0518767,96359.0,96343.0,0.0518847]
[1746288318548,0.2075397,96344.0,96343.0,0.4518847]
[1746288318746,0.2075397,96344.0,96343.0,0.50461587]
[1746288318947,0.2075397,96344.0,96343.0,0.60841187]
[1746288319148,0.2075397,96344.0,96343.0,0.72641187]
[1746288319549,0.2075397,96344.0,96343.0,0.73241187]
[1746288319754,0.2075397,96344.0,96343.0,1.07641857]
[1746288320059,0.2075397,96344.0,96343.0,0.97262257]
[1746288320359,0.2085397,96344.0,96343.0,0.97262257]
[1746288320762,0.2085397,96344.0,96343.0,1.02450697]
[1746288321955,0.2085397,96344.0,96343.0,1.01850697]
[1746288322157,0.2095397,96344.0,96343.0,1.02450697]
[1746288326668,0.2095397,96344.0,96343.0,0.88436149]
[1746288327856,0.2095397,96344.0,96343.0,0.93624589]
[1746288329652,0.2095397,96344.0,96343.0,0.83026149]
[1746288329955,0.2404397,96344.0,96343.0,0.83026149]
[1746288333766,0.2404397,96344.0,96343.0,0.86056149]
[1746288336665,0.2404397,96344.0,96343.0,0.88316149]
[1746288342078,0.2404397,96344.0,96343.0,0.86056149]
[1746288344476,0.2404397,96344.0,96343.0,0.48847039]
[1746288345078,0.2404397,96344.0,96343.0,0.57801009]
[1746288347072,0.2404397,96344.0,96343.0,0.37047039]
[1746288347478,0.2404397,96344.0,96343.0,0.31773922]
[1746288348072,0.2075526,96337.0,96336.0,0.21120759]
[1746288348379,0.2075526,96337.0,96336.0,0.56120759]
[1746288348879,0.2075526,96337.0,96336.0,0.61324163]
[1746288349079,0.2694526,96337.0,96336.0,0.82079643]
[1746288349273,0.2704526,96337.0,96336.0,0.82279643]
[1746288349474,0.2714526,96337.0,96336.0,0.61524163]
[1746288350189,0.2714526,96337.0,96336.0,0.40403404]
[1746288350681,0.2714526,96337.0,96336.0,0.61158884]
[1746288352474,0.2714526,96337.0,96336.0,0.61941106]
[1746288352869,0.2714526,96337.0,96336.0,0.61741106]
[1746288353073,0.2714526,96337.0,96336.0,0.61941106]
[1746288353674,0.2714526,96337.0,96336.0,0.41185626]
[1746288354076,0.2704526,96337.0,96336.0,0.41185626]
[1746288354284,0.2714526,96337.0,96336.0,0.41185626]
[1746288355182,0.2714526,96337.0,96336.0,0.61941106]
[1746288355385,0.2714526,96337.0,96336.0,0.41185626]
[1746288359687,0.2714526,96337.0,96336.0,0.61941106]
[1746288360393,0.2714526,96337.0,96336.0,0.41185626]
[1746288361591,0.2714526,96337.0,96336.0,0.61941106]
[1746288362289,0.2714526,96337.0,96336.0,0.41185626]
[1746288363190,0.2714526,96337.0,96336.0,0.61841106]
[1746288363397,0.2714526,96337.0,96336.0,0.41085626]
[1746288363607,0.2714526,96337.0,96336.0,0.61841106]
[1746288364094,0.2714526,96337.0,96336.0,0.41085626]
[1746288364906,0.2714526,96337.0,96336.0,0.61841106]
[1746288367509,0.6322526,96337.0,96336.0,0.61841106]
[1746288369900,0.2405526,96337.0,96336.0,0.65071106]
[1746288370101,0.2405526,96337.0,96336.0,0.76871106]
[1746288373113,0.07915036,96351.0,96350.0,0.2075246]
[1746288373314,0.28667696,96351.0,96350.0,0.2475246]
[1746288373718,0.2075266,96351.0,96350.0,0.2475246]
[1746288374114,0.2075266,96351.0,96350.0,0.3655246]
[1746288374615,0.2075266,96351.0,96350.0,0.5755246]
[1746288374813,0.0313,96352.0,96351.0,0.2075224]
[1746288375013,0.0313,96352.0,96351.0,0.4518224]
[1746288375214,0.2388203,96352.0,96351.0,0.5698224]
[1746288375915,0.2408203,96352.0,96351.0,0.5698224]
[1746288376117,0.2448203,96352.0,96351.0,0.5698224]
[1746288381911,0.2448203,96352.0,96351.0,0.308]
[1746288382120,0.2754203,96352.0,96351.0,0.22866233]
[1746288382311,0.2754203,96352.0,96351.0,0.2075224]
[1746288384425,0.2594347,96341.0,96340.0,0.3113018]
[1746288384617,0.2594347,96341.0,96340.0,0.6213018]
[1746288385115,0.2594347,96341.0,96340.0,0.7393018]
[1746288385622,0.2604347,96341.0,96340.0,0.7403018]
[1746288386012,0.3249347,96341.0,96340.0,0.7403018]
[1746288386214,0.3249347,96341.0,96340.0,0.6365316]
[1746288386520,0.3553347,96341.0,96340.0,0.3865316]
[1746288391424,0.3563347,96341.0,96340.0,0.3865316]
[1746288392133,0.3553347,96341.0,96340.0,0.3865316]
[1746288392425,0.3563347,96341.0,96340.0,0.3865316]
[1746288393221,0.3543347,96341.0,96340.0,0.3855316]
[1746288393428,0.3573347,96341.0,96340.0,0.3855316]
[1746288402134,0.3573347,96341.0,96340.0,0.2675316]
[1746288403331,0.3573347,96341.0,96340.0,0.3855316]
[1746288404626,0.3269347,96341.0,96340.0,0.3855316]
[1746288406032,0.0675,96341.0,96340.0,0.3855316]
[1746288406330,0.0358,96341.0,96340.0,0.2675316]
[1746288406526,0.0358,96341.0,96340.0,0.2075316]
[1746288406728,0.0358,96341.0,96340.0,0.5308316]
[1746288407125,0.0358,96341.0,96340.0,0.6488316]
[1746288408437,0.004,96341.0,96340.0,0.6488316]
[1746288422244,0.0326,96348.0,96347.0,0.2075311]
[1746288422445,0.0326,96348.0,96347.0,0.4675311]
[1746288423037,0.0326,96348.0,96347.0,0.4980311]
[1746288423246,0.07915036,96360.0,96359.0,0.2075052]
[1746288423442,0.07915036,96360.0,96359.0,0.3075052]
[1746288424246,0.0301,96362.0,96360.0,0.2075031]
[1746288424247,0.07915036,96361.0,96360.0,0.2075031]
[1746288424439,0.07915036,96361.0,96360.0,0.2875031]
[1746288425636,0.07915036,96361.0,96360.0,0.2885031]
[1746288425637,0.08015036,96361.0,96360.0,0.2885031]
[1746288426146,0.08215036,96361.0,96360.0,0.2885031]
[1746288426647,0.11215036,96361.0,96360.0,0.2885031]
[1746288427940,0.033,96361.0,96360.0,0.2885031]
[1746288428448,0.0661,96361.0,96360.0,0.2885031]
[1746288430250,0.0661,96361.0,96360.0,0.4065031]
[1746288433935,0.033,96361.0,96360.0,0.4065031]
[1746288434547,0.033,96361.0,96360.0,0.8876031]
[1746288434753,0.033,96361.0,96360.0,1.0776031]
[1746288435652,0.031,96361.0,96360.0,1.0776031]
[1746288435844,0.032,96361.0,96360.0,1.0786031]
[1746288439549,0.0015,96375.0,96367.0,0.0518715]
[1746288439750,0.0015,96375.0,96374.0,0.5682729]
[1746288440049,0.0015,96375.0,96374.0,0.7682729]
[1746288440551,0.0015,96375.0,96374.0,0.8006729]
[1746288440945,0.0035,96375.0,96374.0,0.8016729]
[1746288441145,0.0045,96375.0,96374.0,0.9196729]
[1746288442052,0.0035,96375.0,96374.0,0.9196729]
[1746288442243,0.0065,96375.0,96374.0,0.9206729]
[1746288445152,0.0384,96375.0,96374.0,0.9206729]
[1746288480276,0.0384,96375.0,96374.0,0.7132]
[1746288480479,0.0384,96375.0,96374.0,0.9206729]
[1746288495394,0.0384,96375.0,96374.0,0.8026729]
[1746288496193,0.0384,96375.0,96374.0,0.9206729]
[1746288496693,0.07915036,96387.0,96386.0,0.2074471]
[1746288496891,0.07915036,96387.0,96386.0,0.7482471]
[1746288497386,0.11015036,96387.0,96386.0,0.75594875]
[1746288497887,0.11115036,96387.0,96386.0,0.75594875]
[1746288498081,0.11215036,96387.0,96386.0,0.75694875]
[1746288498393,0.033,96387.0,96386.0,0.75694875]
[1746288498794,0.033,96387.0,96386.0,0.80008677]
[1746288503597,0.2404449,96387.0,96386.0,0.80008677]
[1746288503996,0.2404449,96387.0,96386.0,0.43928677]
[1746288504197,0.2404449,96387.0,96386.0,0.33928677]
[1746288505186,0.3584449,96387.0,96386.0,0.33928677]
[1746288506894,0.3584449,96387.0,96386.0,0.08870165]
[1746288507106,0.0518655,96379.0,96366.0,0.04459614]
[1746288507300,0.2074901,96366.0,96354.0,0.207515]
[1746288507498,0.2074901,96366.0,96351.0,0.3608]
[1746288507804,0.2075074,96358.0,96351.0,0.3608]
[1746288508000,0.5683074,96358.0,96357.0,0.4085955]
[1746288508202,0.79008741,96358.0,96357.0,0.3185955]
[1746288508402,0.79008741,96358.0,96357.0,0.32645797]
[1746288508599,0.82248741,96358.0,96357.0,0.32645797]
[1746288508794,0.82248741,96358.0,96357.0,0.00941917]
[1746288510201,0.82348741,96358.0,96357.0,0.00941917]
[1746288510403,0.82348741,96358.0,96357.0,0.06041917]
[1746288510798,0.85418741,96358.0,96357.0,0.06041917]
[1746288518401,0.7197074,96358.0,96357.0,0.26792867]
[1746288519111,0.6017074,96358.0,96357.0,0.26792867]
[1746288519312,0.6017074,96358.0,96357.0,0.29912867]
[1746288525016,0.001,96358.0,96357.0,0.29912867]
[1746288525820,0.001,96358.0,96357.0,0.52912867]
[1746288526212,0.001,96358.0,96357.0,0.64712867]
[1746288546135,0.001,96358.0,96357.0,0.52912867]
[1746288548137,0.001,96358.0,96357.0,0.64712867]
[1746288549139,0.001,96358.0,96357.0,0.52912867]
[1746288570851,0.001,96358.0,96357.0,0.59120867]
[1746288584056,0.001,96358.0,96357.0,0.29041917]
[1746288584057,1.07228741,96358.0,96357.0,0.29041917]
[1746288584454,0.2075397,96343.0,96341.0,0.06208]
[1746288584763,0.2075397,96343.0,96342.0,0.64368158]
[1746288585261,0.2703397,96343.0,96342.0,0.64368158]
[1746288586158,0.3883397,96343.0,96342.0,0.08614068]
[1746288586364,0.3893397,96343.0,96342.0,0.39768248]
[1746288586749,0.4931357,96343.0,96342.0,0.39768248]
[1746288586954,0.4941357,96343.0,96342.0,0.40068248]
[1746288587863,0.5262357,96343.0,96342.0,0.40068248]
[1746288588063,0.4224397,96343.0,96342.0,0.40068248]
[1746288589768,0.4224397,96343.0,96342.0,0.32246203]
[1746288591862,0.4224397,96343.0,96342.0,0.11492023]
[1746288602768,0.3903397,96343.0,96342.0,0.11492023]
[1746288605175,0.2723397,96343.0,96342.0,0.11492023]
[1746288606176,0.3903397,96343.0,96342.0,0.11492023]
[1746288607178,0.2723397,96343.0,96342.0,0.11492023]
[1746288607573,0.2723397,96343.0,96342.0,0.14792023]
[1746288609882,0.2723397,96343.0,96342.0,0.17982023]
[1746288611373,0.2418397,96343.0,96342.0,0.38736203]
[1746288611679,0.2095397,96343.0,96342.0,0.62736203]
[1746288612065,0.2423397,96343.0,96342.0,0.62736203]
[1746288612269,0.2423397,96343.0,96342.0,0.74536203]
[1746288624589,0.2423397,96343.0,96342.0,0.53782023]
[1746288624788,0.2731397,96343.0,96342.0,0.53782023]
[1746288624987,0.2423397,96343.0,96342.0,0.53782023]
[1746288626793,0.2423397,96343.0,96342.0,0.74536203]
[1746288627093,0.6031397,96343.0,96342.0,0.74536203]
[1746288627994,0.6031397,96343.0,96342.0,0.53782023]
[1746288629386,0.6031397,96343.0,96342.0,0.74536203]
[1746288630696,0.2423397,96343.0,96342.0,0.74536203]
[1746288630897,0.6031397,96343.0,96342.0,0.53782023]
[1746288632294,0.6031397,96343.0,96342.0,0.74536203]
[1746288634999,0.6031397,96343.0,96342.0,0.53782023]
[1746288638105,0.6031397,96343.0,96342.0,0.41982023]
[1746288642694,0.6031397,96343.0,96342.0,0.01492023]
[1746288642899,0.6031397,96343.0,96342.0,0.15492023]
[1746288645707,0.6031397,96343.0,96342.0,0.01492023]
[1746288645898,0.68229006,96343.0,96342.0,0.02492023]
[1746288648914,0.68229006,96343.0,96342.0,0.23246203]
[1746288649111,0.64949006,96343.0,96342.0,0.35046203]
[1746288649504,0.64949006,96343.0,96342.0,0.65616203]
[1746288652112,0.5703397,96343.0,96342.0,0.65616203]
[1746288652607,0.5703397,96343.0,96342.0,0.13292023]
[1746288652809,0.5703397,96343.0,96342.0,0.16292023]
[1746288653113,0.5703397,96343.0,96342.0,0.04492023]
[1746288653409,0.6016397,96343.0,96342.0,0.04492023]
[1746288656013,0.6016397,96343.0,96342.0,0.01492023]
[1746288656226,0.6327397,96343.0,96342.0,0.02492023]
[1746288658020,0.6327397,96343.0,96342.0,0.01492023]
[1746288658319,0.2075483,96339.0,96338.0,0.0307]
[1746288658519,0.2075548,96336.0,96335.0,4e-08]
[1746288658726,0.2375548,96336.0,96335.0,4e-08]
[1746288659223,0.3555548,96336.0,96335.0,0.00787602]
[1746288660017,0.3565548,96336.0,96335.0,0.01187602]
[1746288661420,0.3575548,96336.0,96335.0,0.01387602]
[1746288661826,0.3575548,96336.0,96335.0,0.00987602]
[1746288663423,0.2395548,96336.0,96335.0,0.00987602]
[1746288664131,0.3575548,96336.0,96335.0,0.00987602]
[1746288666228,0.2395548,96336.0,96335.0,0.00987602]
[1746288676943,0.2075698,96329.0,96328.0,0.15712519]
[1746288677133,0.5683698,96329.0,96328.0,0.27512519]
[1746288677634,0.5683698,96329.0,96328.0,0.28285655]
[1746288678439,0.5693698,96329.0,96328.0,0.28385655]
[1746288679342,0.5703698,96329.0,96328.0,0.28385655]
[1746288679931,0.6000698,96329.0,96328.0,0.12573136]
[1746288680138,0.6353698,96329.0,96328.0,0.12673136]
[1746288680743,0.6363698,96329.0,96328.0,0.19093136]
[1746288681543,0.6353698,96329.0,96328.0,0.18993136]
[1746288681841,0.6363698,96329.0,96328.0,0.19093136]
[1746288682343,0.6030698,96329.0,96328.0,0.19093136]
[1746288682641,0.6030698,96329.0,96328.0,0.39850336]
[1746288682831,0.6030698,96329.0,96328.0,0.19093136]
[1746288683442,0.6030698,96329.0,96328.0,0.27093136]
[1746288684247,0.2075828,96323.0,96322.0,0.00155727]
[1746288684447,0.2075828,96323.0,96322.0,0.15155727]
[1746288685144,0.2075828,96323.0,96322.0,0.26955727]
[1746288685446,0.2075828,96323.0,96322.0,0.48485173]
[1746288685943,0.2085828,96323.0,96322.0,0.48585173]
[1746288686950,0.2095828,96323.0,96322.0,0.48585173]
[1746288691146,0.2095828,96323.0,96322.0,0.27826683]
[1746288691944,0.2425828,96323.0,96322.0,0.27826683]
[1746288692647,0.2425828,96323.0,96322.0,0.48585173]
[1746288694746,0.32161873,96323.0,96322.0,0.48585173]
[1746288695053,0.32161873,96323.0,96305.0,0.32505396]
[1746288695054,0.2076194,96306.0,96305.0,0.32505396]
[1746288695245,0.5684194,96306.0,96305.0,0.70306586]
[1746288695951,0.56853179,96306.0,96305.0,0.70306586]
[1746288696147,0.56853179,96306.0,96305.0,0.82106586]
[1746288696347,0.57053179,96306.0,96305.0,0.84831169]
[1746288696746,0.57053179,96306.0,96305.0,0.90021639]
[1746288699453,0.57053179,96306.0,96305.0,0.84831169]
[1746288699951,0.57053179,96306.0,96305.0,0.79640759]
[1746288701851,0.56953179,96306.0,96305.0,0.79640759]
[1746288702052,0.57053179,96306.0,96305.0,0.79640759]
[1746288703656,0.56953179,96306.0,96305.0,0.79640759]
[1746288703852,0.57053179,96306.0,96305.0,0.79640759]
[1746288713966,0.20973179,96306.0,96305.0,0.79640759]
[1746288724869,0.00211239,96306.0,96305.0,0.79640759]
[1746288725264,0.20973179,96306.0,96305.0,0.79640759]
[1746288725463,0.24123179,96306.0,96305.0,0.79640759]
[1746288727668,0.24123179,96306.0,96305.0,0.62729889]
[1746288733272,0.03361239,96306.0,96305.0,0.62729889]
[1746288733666,0.06441239,96306.0,96305.0,0.62729889]
[1746288735575,0.03361239,96306.0,96305.0,0.62729889]
[1746288735871,0.28662943,96318.0,96317.0,0.2075957]
[1746288736180,0.28662943,96318.0,96317.0,0.8283957]
[1746288736373,0.07903593,96318.0,96317.0,0.8283957]
[1746288736573,0.28662943,96318.0,96317.0,0.8283957]
[1746288736770,0.28662943,96318.0,96317.0,0.8930957]
[1746288737080,0.28762943,96318.0,96317.0,1.0110957]
[1746288737471,0.08003593,96318.0,96317.0,1.0110957]
[1746288738881,0.08103593,96318.0,96317.0,1.0110957]
[1746288740080,0.002,96318.0,96317.0,1.0110957]
[1746288740873,0.0336,96318.0,96317.0,1.0110957]
[1746288743685,0.0336,96318.0,96317.0,1.0120957]
[1746288745074,0.0336,96318.0,96317.0,1.0110957]
[1746288745273,0.0326,96318.0,96317.0,1.0120957]
[1746288745479,0.0336,96318.0,96317.0,1.0130957]
[1746288750288,0.0336,96318.0,96317.0,0.8950957]
[1746288750490,0.0336,96318.0,96317.0,0.8636957]
[1746288750690,0.0654,96318.0,96317.0,0.8303957]
[1746288751683,0.2729935,96318.0,96317.0,0.8303957]
[1746288754987,0.2709935,96318.0,96317.0,0.8293957]
[1746288755187,0.2719935,96318.0,96317.0,0.8293957]
[1746288755387,0.2729935,96318.0,96317.0,0.8303957]
[1746288757397,0.2729935,96318.0,96317.0,0.4695957]
[1746288759193,0.0654,96318.0,96317.0,0.4695957]
[1746288759687,0.2729935,96318.0,96317.0,0.4695957]
[1746288762398,0.0654,96318.0,96317.0,0.4695957]
[1746288788021,0.2729935,96318.0,96317.0,0.4695957]
[1746288788717,0.0654,96318.0,96317.0,0.4695957]
[1746288792127,0.2729935,96318.0,96317.0,0.4695957]
[1746288805037,0.2719935,96318.0,96317.0,0.4685957]
[1746288805237,0.2719935,96318.0,96317.0,0.4695957]
[1746288805238,0.2739935,96318.0,96317.0,0.4695957]
[1746288805539,0.2729935,96318.0,96317.0,0.4685957]
[1746288805837,0.2749935,96318.0,96317.0,0.4685957]
[1746288806829,0.2749935,96318.0,96317.0,0.4675957]
[1746288807530,0.2729935,96318.0,96317.0,0.4675957]
[1746288807931,0.2749935,96318.0,96317.0,0.4675957]
[1746288829248,0.2749935,96318.0,96317.0,0.4980957]
[1746288842047,0.2749935,96318.0,96317.0,0.4675957]
[1746288852157,0.3929935,96318.0,96317.0,0.4675957]
[1746288853158,0.2749935,96318.0,96317.0,0.4675957]
[1746288858763,0.3788175,96318.0,96317.0,0.26]
[1746288859066,0.3788175,96318.0,96295.0,0.3608]
[1746288859067,0.2076302,96301.0,96300.0,0.4698085]
[1746288859257,0.2076302,96301.0,96300.0,0.6895274]
[1746288859460,0.2076302,96301.0,96300.0,0.71026242]
[1746288860264,0.3256302,96301.0,96300.0,0.71026242]
[1746288860864,0.3276302,96301.0,96300.0,0.76417012]
[1746288862865,0.3276302,96301.0,96300.0,0.77209281]
[1746288863059,0.3276302,96301.0,96300.0,0.80409281]
[1746288863260,0.2096302,96301.0,96300.0,0.80409281]
[1746288864265,0.2096302,96301.0,96300.0,0.46065771]
[1746288864765,0.2096302,96301.0,96300.0,0.64755499]
[1746288865069,0.3578302,96301.0,96300.0,0.43992269]
[1746288865268,0.3578302,96301.0,96300.0,0.64755499]
[1746288866178,0.3578302,96301.0,96300.0,0.43992269]
[1746288866373,0.3578302,96301.0,96300.0,0.64755499]
[1746288867270,0.3578302,96301.0,96300.0,0.43992269]
[1746288867463,0.3578302,96301.0,96300.0,0.64755499]
[1746288884774,0.7186302,96301.0,96300.0,0.64755499]
[1746288887979,0.7186302,96301.0,96300.0,0.67875499]
[1746288888182,0.7186302,96301.0,96300.0,0.70915499]
[1746288890681,0.3578302,96301.0,96300.0,0.70915499]
[1746288891178,0.2398302,96301.0,96300.0,0.70915499]
[1746288900999,0.2398302,96301.0,96300.0,0.55372]
[1746288911406,0.2398302,96301.0,96300.0,0.3460877]
[1746288912505,0.6006302,96301.0,96300.0,0.3460877]
[1746288913903,0.6006302,96301.0,96300.0,0.3148877]
[1746288916407,0.2398302,96301.0,96300.0,0.3148877]
[1746288916605,0.6006302,96301.0,96300.0,0.3148877]
[1746288917705,0.6006302,96301.0,96300.0,0.2844877]
[1746288918909,0.6006302,96301.0,96300.0,0.49212]
[1746288919108,0.6006302,96301.0,96300.0,0.2844877]
[1746288920609,0.6006302,96301.0,96300.0,0.49212]
[1746288928117,0.6006302,96301.0,96300.0,0.61012]
[1746288929417,0.6006302,96301.0,96300.0,0.4024877]
[1746288932321,0.6006302,96301.0,96300.0,0.61012]
[1746288935123,0.2398302,96301.0,96300.0,0.61012]
[1746288935324,0.6006302,96301.0,96300.0,0.61012]
[1746288961040,0.6006302,96301.0,96300.0,0.67222]
[1746288973045,0.6006302,96301.0,96300.0,0.67122]
[1746288973647,0.5996302,96301.0,96300.0,0.67022]
[1746288973854,0.6006302,96301.0,96300.0,0.67122]
[1746288978762,0.2398302,96301.0,96300.0,0.67122]
[1746288979053,0.6006302,96301.0,96300.0,0.67122]
[1746288999565,0.393,96301.0,96300.0,0.67122]
[1746288999863,0.3608,96322.0,96310.0,0.2076108]
[1746289000163,0.3608,96322.0,96310.0,0.6756108]
[1746289000664,0.3131682,96311.0,96310.0,0.6756108]
[1746289002056,0.3171682,96311.0,96310.0,0.6766108]
[1746289002770,0.2116086,96311.0,96310.0,0.6766108]
[1746289002958,0.2416086,96311.0,96310.0,0.7076108]
[1746289003159,0.032,96311.0,96310.0,0.7076108]
[1746289003353,0.033,96311.0,96310.0,0.7086108]
[1746289003560,0.2075894,96320.0,96319.0,0.2594845]
[1746289003864,0.2075894,96320.0,96319.0,0.5694845]
[1746289004061,0.2075894,96320.0,96319.0,0.6004845]
[1746289004266,0.2075894,96320.0,96319.0,0.7184845]
[1746289004972,0.2075894,96320.0,96319.0,0.7504845]
[1746289005169,0.2105894,96320.0,96319.0,0.7514845]
[1746289005860,0.2145894,96320.0,96319.0,0.7514845]
[1746289006367,0.2105894,96320.0,96319.0,0.7514845]
[1746289006568,0.2125894,96320.0,96319.0,0.7524845]
[1746289007571,0.005,96320.0,96319.0,0.7524845]
[1746289007769,0.002,96320.0,96319.0,0.7823845]
[1746289008072,0.2115892,96320.0,96319.0,0.7833845]
[1746289008872,0.2095892,96320.0,96319.0,0.7823845]
[1746289009366,0.2115892,96320.0,96319.0,0.7833845]
[1746289019966,0.2115892,96320.0,96319.0,0.7524845]
[1746289020166,0.2444892,96320.0,96319.0,0.7524845]
[1746289021675,0.2444892,96320.0,96319.0,0.7005871]
[1746289036689,0.2444892,96320.0,96319.0,0.461]
[1746289036877,0.75152,96320.0,96300.0,0.11820379]
[1746289037187,0.2076302,96301.0,96300.0,0.4602811]
[1746289037392,0.2076302,96301.0,96300.0,0.5576323]
[1746289037691,0.2404302,96301.0,96300.0,0.5576323]
[1746289038191,0.3030302,96301.0,96300.0,0.5596323]
[1746289038688,0.3040302,96301.0,96300.0,0.5596323]
[1746289039591,0.3050302,96301.0,96300.0,0.5596323]
[1746289039783,0.3050302,96301.0,96300.0,0.56745216]
[1746289040082,0.3040302,96301.0,96300.0,0.35981986]
[1746289040287,0.3050302,96301.0,96300.0,0.18298192]
[1746289040477,0.3050302,96301.0,96300.0,0.00781986]
[1746289040683,0.2076496,96292.0,96291.0,0.1102811]
[1746289040890,0.2076496,96292.0,96291.0,0.35]
[1746289041281,0.3000496,96292.0,96291.0,0.35]
[1746289041991,0.3010496,96292.0,96291.0,0.35]
[1746289043279,0.3020496,96292.0,96291.0,0.35882998]
[1746289048292,0.3010496,96292.0,96291.0,0.35882998]
[1746289048495,0.3020496,96292.0,96291.0,0.35882998]
[1746289050383,0.3020496,96292.0,96291.0,0.56648178]
[1746289052189,0.3020496,96292.0,96291.0,0.35882998]
[1746289053995,0.3020496,96292.0,96291.0,0.12882998]
[1746289061398,0.2076582,96288.0,96287.0,1e-08]
[1746289061595,0.6284582,96288.0,96287.0,1e-08]
[1746289061900,0.2076927,96272.0,96271.0,7e-08]
[1746289062095,0.2077337,96253.0,96250.0,0.1102811]
[1746289062291,0.2077337,96253.0,96252.0,0.58705906]
[1746289062488,0.3608,96258.0,96257.0,0.2077251]
[1746289062698,0.207706,96270.0,96269.0,0.207697]
[1746289062993,0.6864953,96272.0,96271.0,0.2076949]
[1746289063298,0.5684953,96272.0,96271.0,0.4456949]
[1746289064899,0.2076921,96273.0,96272.0,0.2596112]
[1746289065087,0.2076921,96273.0,96272.0,0.5676112]
[1746289066087,0.2086921,96273.0,96272.0,0.5676112]
[1746289066607,0.2096921,96273.0,96272.0,0.5676112]
[1746289074315,0.2096921,96273.0,96272.0,0.40927002]
[1746289074617,0.2096921,96273.0,96272.0,0.46119282]
[1746289075421,0.002,96273.0,96272.0,0.46119282]
[1746289076119,0.2096906,96273.0,96272.0,0.46119282]
[1746289081113,0.2096906,96273.0,96272.0,0.49159282]
[1746289081514,0.2096906,96273.0,96272.0,0.52179282]
[1746289083222,0.20949614,96273.0,96272.0,0.52179282]
[1746289088219,0.00180554,96273.0,96272.0,0.52179282]
[1746289089325,0.03400554,96273.0,96272.0,0.52179282]
[1746289089520,0.24169614,96273.0,96272.0,0.52179282]
[1746289089826,0.03400554,96273.0,96272.0,0.52179282]
[1746289090527,0.24169614,96273.0,96272.0,0.52179282]
[1746289097928,0.24169614,96273.0,96272.0,0.49159282]
[1746289098127,0.27409614,96273.0,96272.0,0.49159282]
[1746289100836,0.24169614,96273.0,96272.0,0.49159282]
[1746289101629,0.24169614,96273.0,96272.0,0.52439282]
[1746289103238,0.27169614,96273.0,96272.0,0.52439282]